fUST/lending_fUST_20250605
["ID","MTS","AMOUNT","RATE_DAILY","PERIOD"]
[364363192,1749081050285,-500.0,0.0002256,2]
[364363194,1749081050295,-500.0,0.0002256,2]
[364363196,1749081050304,-500.0,0.0002256,2]
[364363198,1749081050314,-500.0,0.0002256,2]
[364363200,1749081050328,-500.0,0.0002256,2]
[364363202,1749081050337,-500.0,0.0002256,2]
[364363204,1749081050347,-500.0,0.0002256,2]
[364363206,1749081050356,-500.0,0.0002256,2]
[364363208,1749081050368,-500.0,0.0002256,2]
[364363210,1749081050377,-500.0,0.0002256,2]
[364363212,1749081050387,-500.0,0.0002256,2]
[364363214,1749081050399,-500.0,0.0002256,2]
[364363216,1749081050411,-500.0,0.0002256,2]
[364363218,1749081050421,-500.0,0.0002256,2]
[364363220,1749081050431,-500.0,0.0002256,2]
[364363222,1749081050440,-151.0,0.000226,7]
[364363225,1749081050450,-151.0,0.000226,7]
[364363227,1749081050459,-151.0,0.000226,7]
[364363229,1749081050469,-1342.08623891,0.00022624,7]
[364363231,1749081050479,-458.2,0.00022647,2]
[364363233,1749081050488,-1464.11,0.00022647,2]
[364363234,1749081050497,-2560.82,0.00022647,2]
[364363235,1749081050506,-2762.2,0.00022647,2]
[364363236,1749081050516,-704.83,0.00022647,2]
[364363237,1749081050525,-1529.84,0.00022647,2]
[364363238,1749081050535,-1553.6,0.00022647,2]
[364363239,1749081050544,-575.03,0.00022647,2]
[364363240,1749081050554,-2614.29,0.00022647,2]
[364363241,1749081050563,-849.78,0.00022648,2]
[364363242,1749081050572,-579.14,0.00022648,2]
[364363243,1749081050592,-4117.45,0.00022648,2]
[364363244,1749081050608,-640.15,0.00022648,2]
[364363246,1749081050623,-4472.77,0.00022648,2]
[364363249,1749081050640,-849.4,0.00022648,2]
[364363252,1749081050658,-918.13,0.00022648,2]
[364363255,1749081050677,-1332.82,0.00022648,2]
[364363257,1749081050693,-151.0,0.00022648,7]
[364363260,1749081050708,-570.78,0.00022648,2]
[364363263,1749081050725,-349.3,0.00022648,2]
[364363265,1749081050737,-1210.67,0.00022648,2]
[364363267,1749081050751,-250.0,0.00022682,2]
[364363270,1749081050767,-2000.0,0.00022684,2]
[364363273,1749081050786,-2000.0,0.00022684,2]
[364363276,1749081050802,-222.03353951,0.00022684,2]
[364363278,1749081050814,-797.3,0.000227,7]
[364363280,1749081050827,-1342.08623891,0.00022831,8]
[364363283,1749081050844,-151.0,0.000229,6]
[364363285,1749081050857,-458.2,0.00022921,2]
[364363288,1749081050871,-701.71,0.00022921,2]
[364363290,1749081050885,-1464.11,0.00022921,2]
[364363292,1749081050897,-2560.82,0.00022921,2]
[364363295,1749081050912,-2762.2,0.00022921,2]
[364363297,1749081050925,-704.83,0.00022921,2]
[364363299,1749081050939,-1529.84,0.00022921,2]
[364363302,1749081050952,-1553.6,0.00022921,2]
[364363304,1749081050966,-575.03,0.00022921,2]
[364363306,1749081050979,-2614.29,0.00022921,2]
[364363309,1749081050993,-849.78,0.00022922,2]
[364363311,1749081051008,-579.14,0.00022922,2]
[364363314,1749081051021,-4117.45,0.00022922,2]
[364363316,1749081051034,-640.15,0.00022922,2]
[364363318,1749081051048,-4472.77,0.00022922,2]
[364363321,1749081051061,-849.4,0.00022922,2]
[364363323,1749081051075,-918.13,0.00022922,2]
[364363326,1749081051089,-1332.82,0.00022922,2]
[364363328,1749081051102,-570.78,0.00022922,2]
[364363331,1749081051116,-1210.67,0.00022922,2]
[364363333,1749081051129,-151.0,0.00022982,7]
[364363335,1749081051143,-360.777426,0.00022982,7]
[364363338,1749081051157,-360.777426,0.00022982,7]
[364363340,1749081051171,-76850.50395901,0.00022982,2]
[364363377,1749081051525,-67362.11064356,0.00022982,2]
[364363380,1749081051536,-12500.0,0.00022982,3]
[364363381,1749081051545,-314.98208564,0.0002299,3]
[364363383,1749081051555,-12500.0,0.00022991,3]
[364363385,1749081051564,-12500.0,0.00023,3]
[364363387,1749081051573,-423.69433488,0.00023,3]
[364363389,1749081051583,-842.5625,0.00023,3]
[364363391,1749081051592,-500.0,0.00023013,2]
[364363393,1749081051601,-1342.08623891,0.00023038,8]
[364363395,1749081051610,-5000.0,0.00023108,2]
[364363397,1749081051620,-458.2,0.00023195,2]
[364363399,1749081051629,-1464.11,0.00023195,2]
[364363401,1749081051638,-2560.82,0.00023195,2]
[364363403,1749081051648,-2762.2,0.00023195,2]
[364363405,1749081051658,-704.83,0.00023195,2]
[364363407,1749081051668,-1529.84,0.00023195,2]
[364363409,1749081051677,-1553.6,0.00023195,2]
[364363411,1749081051687,-575.03,0.00023195,2]
[364363413,1749081051696,-2614.29,0.00023195,2]
[364363416,1749081051706,-849.78,0.00023196,2]
[364363418,1749081051716,-579.14,0.00023196,2]
[364363419,1749081051725,-4117.45,0.00023196,2]
[364363421,1749081051735,-640.15,0.00023196,2]
[364363423,1749081051744,-4472.77,0.00023196,2]
[364363425,1749081051754,-849.4,0.00023196,2]
[364363428,1749081051764,-918.13,0.00023196,2]
[364363429,1749081051773,-1332.82,0.00023196,2]
[364363431,1749081051783,-570.78,0.00023196,2]
[364363433,1749081051793,-1210.67,0.00023196,2]
[364363435,1749081051802,-2546.93954162,0.000232,2]
[364363437,1749081051812,-364.5816698,0.00023233,2]
[364363439,1749081051821,-364.5816698,0.00023233,2]
[364363441,1749081051830,-1342.08623891,0.00023245,8]
[364363443,1749081051839,-490.3386569,0.0002326,2]
[364363445,1749081051848,-4000.0,0.00023269,4]
[364363447,1749081051858,-257.36609889,0.00023287,2]
[364363449,1749081051867,-206.71,0.0002329,4]
[364363451,1749081051876,-46199.37,0.000233,2]
[364363453,1749081051885,-151.0,0.000233,7]
[364363455,1749081051895,-151.0,0.000233,7]
[364363457,1749081051904,-151.0,0.000233,7]
[364363459,1749081051914,-151.0,0.000233,7]
[364363461,1749081051923,-2546.93954156,0.00023306,2]
[364363463,1749081051932,-701.71,0.00023337,2]
[364363465,1749081051942,-962.0,0.00023352,2]
[364363467,1749081051951,-2225.0,0.00023352,2]
[364363469,1749081051960,-709.0,0.00023352,2]
[364363472,1749081051970,-405.0,0.00023352,2]
[364363474,1749081051980,-1500.0,0.00023356,2]
[364363475,1749081051989,-701.71,0.00023369,2]
[364363477,1749081052000,-572.7197194,0.0002337,2]
[364363479,1749081052009,-153.0,0.0002337,2]
[364363481,1749081052019,-153.0,0.0002337,2]
[364363483,1749081052028,-316.9382195,0.0002337,2]
[364363485,1749081052037,-444.445632,0.0002337,2]
[364363487,1749081052046,-296.1805946,0.00023397,2]
[364363489,1749081052056,-353.057519,0.00023397,2]
[364363491,1749081052066,-153.0,0.00023397,2]
[364363493,1749081052076,-390.5657552,0.00023397,2]
[364363495,1749081052085,-158.575084,0.00023397,2]
[364363497,1749081052094,-353.057519,0.00023397,2]
[364363499,1749081052103,-306.0,0.00023397,2]
[364363502,1749081052115,-572.7197194,0.00023397,2]
[364363504,1749081052124,-158.575084,0.00023397,2]
[364363506,1749081052134,-572.7197194,0.00023397,2]
[364363509,1749081052152,-153.0,0.00023397,2]
[364363511,1749081052165,-1002.569127,0.000234,2]
[364363513,1749081052175,-2546.93954156,0.00023412,2]
[364363515,1749081052185,-365.24,0.00023434,10]
[364363517,1749081052195,-1342.08623891,0.00023452,9]
[364363519,1749081052204,-458.34537311,0.00023469,2]
[364363521,1749081052215,-1464.21,0.00023469,2]
[364363523,1749081052224,-2560.9124634,0.00023469,2]
[364363525,1749081052235,-2762.41487717,0.00023469,2]
[364363527,1749081052245,-704.86,0.00023469,2]
[364363529,1749081052254,-1529.86581224,0.00023469,2]
[364363531,1749081052265,-1553.82,0.00023469,2]
[364363533,1749081052274,-575.23234137,0.00023469,2]
[364363535,1749081052284,-2614.30053796,0.00023469,2]
[364363537,1749081052294,-849.78,0.0002347,2]
[364363539,1749081052304,-579.14,0.0002347,2]
[364363542,1749081052314,-4117.45,0.0002347,2]
[364363544,1749081052327,-640.15,0.0002347,2]
[364363546,1749081052337,-4472.77,0.0002347,2]
[364363548,1749081052347,-849.4,0.0002347,2]
[364363550,1749081052357,-918.13,0.0002347,2]
[364363552,1749081052366,-1332.82,0.0002347,2]
[364363554,1749081052376,-570.78,0.0002347,2]
[364363556,1749081052386,-1210.67,0.0002347,2]
[364363558,1749081052398,-151.0,0.000235,7]
[364363560,1749081052408,-2546.93954156,0.00023518,2]
[364363562,1749081052419,-500.0,0.00023561,2]
[364363564,1749081052428,-162.96162869,0.00023562,2]
[364363566,1749081052438,-1555.07,0.000236,7]
[364363568,1749081052448,-2546.93954156,0.00023624,2]
[364363570,1749081052458,-5000.0,0.00023656,2]
[364363572,1749081052468,-151.0,0.00023656,7]
[364363574,1749081052478,-151.0,0.00023656,7]
[364363576,1749081052487,-151.0,0.00023656,7]
[364363578,1749081052497,-1342.08623891,0.00023659,9]
[364363580,1749081052506,-153.0,0.00023671,2]
[364363582,1749081052517,-153.0,0.00023671,2]
[364363584,1749081052528,-153.0,0.00023671,2]
[364363586,1749081052538,-153.0,0.00023671,2]
[364363588,1749081052547,-153.0,0.00023671,2]
[364363590,1749081052556,-306.0,0.00023671,2]
[364363592,1749081052567,-429.6268367,0.00023671,2]
[364363594,1749081052576,-151.0,0.000237,10]
[364363596,1749081052586,-2546.93954156,0.00023729,2]
[364363598,1749081052595,-844.184877,0.00023734,3]
[364363600,1749081052605,-152.867208,0.00023744,7]
[364363602,1749081052615,-151.0,0.00023744,7]
[364363604,1749081052624,-849.78,0.00023744,2]
[364363606,1749081052633,-165.632687,0.00023744,7]
[364363608,1749081052643,-165.632687,0.00023744,7]
[364363610,1749081052652,-579.27,0.00023744,2]
[364363612,1749081052662,-4117.45,0.00023744,2]
[364363614,1749081052671,-151.0,0.00023744,7]
[364363616,1749081052680,-640.2327045,0.00023744,2]
[364363619,1749081052690,-164.214504,0.00023744,7]
[364363620,1749081052699,-164.214504,0.00023744,7]
[364363622,1749081052709,-4472.80132869,0.00023744,2]
[364363624,1749081052718,-849.4,0.00023744,2]
[364363625,1749081052728,-151.0,0.00023744,7]
[364363626,1749081052737,-151.0,0.00023744,7]
[364363627,1749081052747,-918.15,0.00023744,2]
[364363628,1749081052756,-1332.92117356,0.00023744,2]
[364363629,1749081052767,-570.95,0.00023744,2]
[364363630,1749081052776,-1210.90149257,0.00023744,2]
[364363631,1749081052788,-151.0,0.000238,7]
[364363632,1749081052798,-151.0,0.000238,7]
[364363633,1749081052807,-151.0,0.000238,7]
[364363634,1749081052817,-842.5625,0.000238,7]
[364363635,1749081052827,-2546.93954156,0.00023835,2]
[364363636,1749081052836,-1342.08623891,0.00023866,10]
[364363637,1749081052845,-701.71,0.00023896,2]
[364363638,1749081052855,-701.71,0.00023896,2]
[364363639,1749081052864,-701.71,0.00023896,2]
[364363640,1749081052874,-701.71,0.00023896,2]
[364363641,1749081052883,-701.8180297,0.00023896,2]
[364363642,1749081052893,-797.3,0.000239,7]
[364363643,1749081052904,-1000.0,0.000239,2]
[364363644,1749081052915,-314.98208564,0.000239,7]
[364363645,1749081052924,-151.0,0.000239,7]
[364363646,1749081052934,-360.777426,0.000239,7]
[364363647,1749081052944,-360.777426,0.000239,7]
[364363648,1749081052954,-215.0738,0.00023929,2]
[364363649,1749081052964,-2546.93954156,0.00023941,2]
[364363650,1749081052973,-645.55,0.00023942,5]
[364363651,1749081052984,-800.0,0.00023959,2]
[364363653,1749081052994,-500.0,0.00024,2]
[364363654,1749081053003,-500.0,0.00024,2]
[364363656,1749081053013,-849.78,0.00024018,2]
[364363658,1749081053023,-4117.45,0.00024018,2]
[364363660,1749081053032,-849.4,0.00024018,2]
[364363662,1749081053041,-2546.93954156,0.00024047,2]
[364363664,1749081053051,-3702.93536903,0.00024056,2]
[364363666,1749081053060,-1342.08623891,0.00024072,10]
[364363668,1749081053070,-638.0,0.000241,2]
[364363670,1749081053080,-500.0,0.00024109,2]
[364363673,1749081053090,-155.07848048,0.00024139,3]
[364363674,1749081053099,-316.0,0.00024139,3]
[364363677,1749081053109,-316.0,0.00024139,3]
[364363679,1749081053119,-316.0,0.00024139,3]
[364363681,1749081053129,-733.41055328,0.00024139,3]
[364363683,1749081053140,-316.0,0.00024139,3]
[364363684,1749081053150,-316.0,0.00024139,3]
[364363686,1749081053159,-316.0,0.00024139,3]
[364363688,1749081053171,-316.0,0.00024139,3]
[364363691,1749081053180,-316.0,0.00024139,3]
[364363692,1749081053189,-316.0,0.00024139,3]
[364363695,1749081053199,-316.0,0.00024139,3]
[364363697,1749081053208,-316.0,0.00024139,3]
[364363698,1749081053217,-390.9480695,0.00024139,3]
[364363700,1749081053227,-645.55,0.00024142,6]
[364363703,1749081053238,-2200.0,0.00024148,2]
[364363705,1749081053250,-2546.93954156,0.00024153,2]
[364363707,1749081053259,-800.0,0.00024168,2]
[364363709,1749081053268,-546.72605437,0.00024173,2]
[364363711,1749081053280,-500.0,0.00024173,2]
[364363713,1749081053290,-2000.0,0.000242,2]
[364363715,1749081053299,-2000.0,0.000242,2]
[364363717,1749081053308,-2000.0,0.000242,2]
[364363719,1749081053319,-2000.0,0.000242,2]
[364363721,1749081053330,-151.0,0.000242,6]
[364363723,1749081053340,-151.0,0.000242,7]
[364363725,1749081053349,-151.0,0.000242,7]
[364363727,1749081053359,-1987.206,0.000242,2]
[364363729,1749081053368,-1987.206,0.000242,2]
[364363731,1749081053378,-360.777426,0.000242,7]
[364363733,1749081053388,-360.777426,0.000242,7]
[364363735,1749081053400,-5000.0,0.00024204,2]
[364363737,1749081053412,-151.0,0.00024204,7]
[364363739,1749081053422,-152.461731,0.00024204,7]
[364363742,1749081053432,-151.0,0.00024204,7]
[364363744,1749081053441,-500.0,0.00024215,9]
[364363745,1749081053450,-500.0,0.00024215,9]
[364363747,1749081053460,-151.0,0.00024216,7]
[364363749,1749081053469,-151.0,0.00024216,7]
[364363751,1749081053479,-151.353286,0.00024216,7]
[364363753,1749081053488,-151.0,0.00024216,7]
[364363755,1749081053497,-151.0,0.00024216,7]
[364363757,1749081053507,-151.0,0.00024216,7]
[364363760,1749081053516,-151.0,0.00024216,7]
[364363762,1749081053525,-151.0,0.00024216,7]
[364363763,1749081053535,-151.0,0.00024216,7]
[364363765,1749081053544,-151.0,0.00024216,7]
[364363767,1749081053554,-152.008778,0.00024216,7]
[364363769,1749081053563,-151.0,0.00024216,7]
[364363772,1749081053573,-151.0,0.00024216,7]
[364363774,1749081053583,-151.0,0.00024216,7]
[364363776,1749081053593,-151.0,0.00024216,7]
[364363778,1749081053603,-151.0,0.00024216,7]
[364363779,1749081053612,-151.0,0.00024216,7]
[364363782,1749081053622,-151.0,0.00024216,7]
[364363783,1749081053632,-151.0,0.00024216,7]
[364363785,1749081053641,-151.0,0.00024216,7]
[364363787,1749081053650,-151.0,0.00024216,7]
[364363790,1749081053661,-151.0,0.00024216,7]
[364363792,1749081053670,-151.0,0.00024216,7]
[364363793,1749081053680,-151.0,0.00024216,7]
[364363796,1749081053689,-151.0,0.00024216,7]
[364363798,1749081053699,-159.651909,0.00024216,7]
[364363799,1749081053709,-151.0,0.00024216,7]
[364363801,1749081053718,-151.0,0.00024216,7]
[364363804,1749081053728,-151.0,0.00024216,7]
[364363806,1749081053738,-151.0,0.00024216,7]
[364363808,1749081053747,-151.0,0.00024216,7]
[364363810,1749081053757,-151.0,0.00024216,7]
[364363811,1749081053766,-151.0,0.00024216,7]
[364363813,1749081053775,-175.293221,0.00024216,7]
[364363815,1749081053785,-151.0,0.00024216,7]
[364363817,1749081053794,-151.0,0.00024216,7]
[364363819,1749081053804,-151.0,0.00024216,7]
[364363821,1749081053813,-151.0,0.00024216,7]
[364363823,1749081053823,-151.0,0.00024216,7]
[364363825,1749081053832,-151.0,0.00024216,7]
[364363827,1749081053841,-151.0,0.00024216,7]
[364363829,1749081053851,-151.0,0.00024216,7]
[364363831,1749081053860,-151.0,0.00024216,7]
[364363833,1749081053870,-151.0,0.00024216,7]
[364363835,1749081053880,-152.954714,0.00024216,7]
[364363837,1749081053891,-151.0,0.00024216,7]
[364363839,1749081053900,-151.0,0.00024216,7]
[364363853,1749081054015,-151.0,0.00024216,7]
[364363856,1749081054041,-151.0,0.00024216,7]
[364363858,1749081054051,-151.387937,0.00024216,7]
[364363860,1749081054061,-293.220748,0.00024216,7]
[364363862,1749081054070,-151.0,0.00024216,7]
[364363864,1749081054080,-151.0,0.00024216,7]
[364363866,1749081054089,-151.0,0.00024216,7]
[364363868,1749081054099,-151.0,0.00024216,7]
[364363870,1749081054108,-151.0,0.00024216,7]
[364363872,1749081054118,-151.0,0.00024216,7]
[364363875,1749081054137,-151.0,0.00024216,7]
[364363877,1749081054147,-151.0,0.00024216,7]
[364363879,1749081054157,-151.0,0.00024216,7]
[364363881,1749081054167,-151.0,0.00024216,7]
[364363883,1749081054176,-151.0,0.00024216,7]
[364363885,1749081054186,-241.13418,0.00024216,7]
[364363887,1749081054196,-151.0,0.00024216,7]
[364363889,1749081054209,-166.168948,0.00024216,7]
[364363891,1749081054219,-166.168948,0.00024216,7]
[364363893,1749081054229,-166.168948,0.00024216,7]
[364363895,1749081054239,-166.168948,0.00024216,7]
[364363897,1749081054249,-166.168948,0.00024216,7]
[364363899,1749081054258,-166.168948,0.00024216,7]
[364363901,1749081054268,-166.168948,0.00024216,7]
[364363903,1749081054278,-166.168948,0.00024216,7]
[364363905,1749081054288,-166.168948,0.00024216,7]
[364363907,1749081054298,-166.168948,0.00024216,7]
[364363909,1749081054308,-166.168948,0.00024216,7]
[364363911,1749081054320,-166.168948,0.00024216,7]
[364363913,1749081054330,-166.168948,0.00024216,7]
[364363915,1749081054340,-166.168948,0.00024216,7]
[364363917,1749081054350,-166.168948,0.00024216,7]
[364363919,1749081054361,-166.168948,0.00024216,7]
[364363922,1749081054371,-166.168948,0.00024216,7]
[364363924,1749081054380,-166.168948,0.00024216,7]
[364363926,1749081054392,-166.168948,0.00024216,7]
[364363928,1749081054402,-166.168948,0.00024216,7]
[364363930,1749081054412,-151.0,0.00024216,7]
[364363932,1749081054421,-151.0,0.00024216,7]
[364363934,1749081054431,-170.902628,0.00024216,7]
[364363936,1749081054441,-151.0,0.00024216,7]
[364363938,1749081054450,-151.0,0.00024216,7]
[364363940,1749081054460,-151.0,0.00024216,7]
[364363942,1749081054470,-151.0,0.00024216,7]
[364363944,1749081054479,-151.0,0.00024216,7]
[364363946,1749081054489,-151.0,0.00024216,7]
[364363948,1749081054499,-151.0,0.00024216,7]
[364363950,1749081054509,-151.0,0.00024216,7]
[364363952,1749081054518,-151.0,0.00024216,7]
[364363954,1749081054528,-151.0,0.00024216,7]
[364363956,1749081054537,-151.0,0.00024216,7]
[364363958,1749081054547,-151.0,0.00024216,7]
[364363960,1749081054557,-151.0,0.00024216,7]
[364363962,1749081054566,-151.0,0.00024216,7]
[364363964,1749081054576,-151.0,0.00024216,7]
[364363966,1749081054587,-151.0,0.00024216,7]
[364363968,1749081054596,-151.0,0.00024216,7]
[364363970,1749081054606,-151.0,0.00024216,7]
[364363972,1749081054616,-151.0,0.00024216,7]
[364363974,1749081054625,-151.0,0.00024216,7]
[364363976,1749081054635,-151.0,0.00024216,7]
[364363978,1749081054645,-301.393573,0.00024216,7]
[364363980,1749081054654,-151.0,0.00024216,7]
[364363982,1749081054664,-151.0,0.00024216,7]
[364363984,1749081054674,-151.0,0.00024216,7]
[364363986,1749081054684,-151.0,0.00024216,7]
[364363988,1749081054694,-151.0,0.00024216,7]
[364363990,1749081054704,-151.0,0.00024216,7]
[364363992,1749081054714,-151.0,0.00024216,7]
[364363994,1749081054724,-151.0,0.00024216,7]
[364363996,1749081054733,-151.0,0.00024216,7]
[364363998,1749081054742,-151.0,0.00024216,7]
[364364001,1749081054752,-151.0,0.00024216,7]
[364364003,1749081054762,-151.0,0.00024216,7]
[364364005,1749081054773,-406.117295,0.00024216,7]
[364364007,1749081054782,-246.197606,0.00024216,7]
[364364009,1749081054792,-406.117295,0.00024216,7]
[364364011,1749081054802,-406.117295,0.00024216,7]
[364364013,1749081054811,-406.117295,0.00024216,7]
[364364015,1749081054821,-406.117295,0.00024216,7]
[364364017,1749081054830,-406.117295,0.00024216,7]
[364364019,1749081054839,-406.117295,0.00024216,7]
[364364021,1749081054849,-406.117295,0.00024216,7]
[364364023,1749081054858,-406.117295,0.00024216,7]
[364364025,1749081054868,-406.117295,0.00024216,7]
[364364027,1749081054878,-406.117295,0.00024216,7]
[364364029,1749081054888,-406.117295,0.00024216,7]
[364364031,1749081054898,-406.117295,0.00024216,7]
[364364033,1749081054907,-406.117295,0.00024216,7]
[364364035,1749081054917,-406.117295,0.00024216,7]
[364364037,1749081054926,-406.117295,0.00024216,7]
[364364039,1749081054936,-406.117295,0.00024216,7]
[364364041,1749081054945,-406.117295,0.00024216,7]
[364364043,1749081054955,-406.117295,0.00024216,7]
[364364045,1749081054964,-406.117299,0.00024216,7]
[364364047,1749081054974,-151.0,0.00024216,7]
[364364049,1749081054984,-151.0,0.00024216,7]
[364364051,1749081054995,-151.0,0.00024216,7]
[364364053,1749081055006,-151.0,0.00024216,7]
[364364055,1749081055016,-151.0,0.00024216,7]
[364364058,1749081055028,-151.0,0.00024216,7]
[364364060,1749081055037,-151.0,0.00024216,7]
[364364062,1749081055047,-1021.148218,0.00024216,7]
[364364064,1749081055057,-1021.148218,0.00024216,7]
[364364066,1749081055067,-1021.148218,0.00024216,7]
[364364068,1749081055077,-1021.148218,0.00024216,7]
[364364070,1749081055086,-1021.148218,0.00024216,7]
[364364072,1749081055098,-1021.148218,0.00024216,7]
[364364074,1749081055108,-1021.148218,0.00024216,7]
[364364076,1749081055118,-1021.148218,0.00024216,7]
[364364078,1749081055128,-1021.148218,0.00024216,7]
[364364080,1749081055138,-1021.148218,0.00024216,7]
[364364082,1749081055147,-1021.148218,0.00024216,7]
[364364084,1749081055157,-1021.148218,0.00024216,7]
[364364086,1749081055167,-1021.148218,0.00024216,7]
[364364088,1749081055177,-1021.148218,0.00024216,7]
[364364090,1749081055187,-1021.148218,0.00024216,7]
[364364092,1749081055196,-1021.148218,0.00024216,7]
[364364094,1749081055206,-1021.148218,0.00024216,7]
[364364096,1749081055215,-1021.148218,0.00024216,7]
[364364098,1749081055226,-1021.148218,0.00024216,7]
[364364101,1749081055237,-1021.148223,0.00024216,7]
[364364103,1749081055247,-1075.131657,0.00024216,2]
[364364105,1749081055257,-1075.131657,0.00024216,2]
[364364107,1749081055266,-1075.131657,0.00024216,2]
[364364109,1749081055276,-1075.131657,0.00024216,2]
[364364111,1749081055286,-1075.131657,0.00024216,2]
[364364113,1749081055295,-1075.131657,0.00024216,2]
[364364115,1749081055304,-1075.131657,0.00024216,2]
[364364117,1749081055314,-1075.131657,0.00024216,2]
[364364118,1749081055328,-1075.131657,0.00024216,2]
[364364119,1749081055337,-1075.131657,0.00024216,2]
[364364120,1749081055346,-1075.131657,0.00024216,2]
[364364121,1749081055356,-1075.131657,0.00024216,2]
[364364122,1749081055367,-1075.131657,0.00024216,2]
[364364123,1749081055376,-1075.131657,0.00024216,2]
[364364124,1749081055385,-1075.131657,0.00024216,2]
[364364126,1749081055396,-1075.131657,0.00024216,2]
[364364128,1749081055407,-1075.131657,0.00024216,2]
[364364130,1749081055417,-1075.131657,0.00024216,2]
[364364132,1749081055426,-1075.131657,0.00024216,2]
[364364134,1749081055436,-1075.131655,0.00024216,2]
[364364136,1749081055445,-469.473793,0.00024216,7]
[364364138,1749081055455,-469.473793,0.00024216,7]
[364364140,1749081055464,-469.473793,0.00024216,7]
[364364142,1749081055474,-469.473793,0.00024216,7]
[364364144,1749081055484,-469.473793,0.00024216,7]
[364364146,1749081055494,-469.473793,0.00024216,7]
[364364148,1749081055504,-469.473793,0.00024216,7]
[364364150,1749081055514,-469.473793,0.00024216,7]
[364364152,1749081055523,-469.473793,0.00024216,7]
[364364154,1749081055533,-469.473793,0.00024216,7]
[364364156,1749081055543,-469.473793,0.00024216,7]
[364364158,1749081055552,-469.473793,0.00024216,7]
[364364160,1749081055562,-469.473793,0.00024216,7]
[364364162,1749081055572,-469.473793,0.00024216,7]
[364364164,1749081055582,-469.473793,0.00024216,7]
[364364166,1749081055591,-469.473793,0.00024216,7]
[364364168,1749081055601,-469.473793,0.00024216,7]
[364364170,1749081055611,-469.473793,0.00024216,7]
[364364172,1749081055621,-469.473793,0.00024216,7]
[364364174,1749081055630,-469.473797,0.00024216,7]
[364364176,1749081055640,-151.0,0.00024216,7]
[364364178,1749081055649,-151.0,0.00024216,7]
[364364180,1749081055660,-151.0,0.00024216,7]
[364364182,1749081055670,-151.0,0.00024216,7]
[364364184,1749081055680,-151.0,0.00024216,7]
[364364186,1749081055689,-151.755822,0.00024216,7]
[364364188,1749081055699,-165.632687,0.00024216,7]
[364364190,1749081055709,-165.632687,0.00024216,7]
[364364192,1749081055718,-151.0,0.00024216,7]
[364364194,1749081055728,-151.0,0.00024216,7]
[364364196,1749081055738,-151.0,0.00024216,7]
[364364198,1749081055747,-211.435039,0.00024216,7]
[364364200,1749081055757,-151.0,0.00024216,7]
[364364202,1749081055766,-164.214504,0.00024216,7]
[364364204,1749081055776,-164.214504,0.00024216,7]
[364364206,1749081055786,-151.0,0.00024216,7]
[364364209,1749081055796,-151.0,0.00024216,7]
[364364210,1749081055807,-158.401731,0.00024219,7]
[364364213,1749081055817,-208.0,0.00024219,2]
[364364215,1749081055826,-206.0,0.00024219,2]
[364364216,1749081055836,-206.0,0.00024219,2]
[364364218,1749081055846,-151.0,0.00024219,7]
[364364220,1749081055856,-151.0,0.00024219,7]